bitfinex-derivatives/quotes_BNBF0:USTF0_20250211
["timestamp","ask_amount","ask_price","bid_price","bid_amount"]
[1739242274106,1.49144914,616.4,615.52,0.32492851]
[1739242274298,1.49144914,616.39,615.52,0.32492851]
[1739242274503,1.49144914,616.38,615.52,0.32492851]
[1739242274703,1.49144914,616.37,615.52,0.32492851]
[1739242275002,1.49144914,616.36,615.52,0.32492851]
[1739242275200,1.49144914,616.35,615.52,0.32492851]
[1739242275504,2.56930722,616.34,615.52,0.32492851]
[1739242275800,1.4921966,616.33,615.52,0.32492851]
[1739242276204,1.07711062,616.32,615.52,0.32492851]
[1739242276401,1.4921966,616.31,615.52,0.32492851]
[1739242276805,1.07711062,616.3,615.52,0.32492851]
[1739242277006,1.4921966,616.29,615.52,0.32492851]
[1739242277407,1.07711062,616.28,615.52,0.32492851]
[1739242278208,1.07711062,616.69,615.52,0.32492851]
[1739242278407,1.49209053,616.68,615.52,0.32492851]
[1739242278607,1.49209053,616.67,615.52,0.32492851]
[1739242278807,1.49209053,616.66,615.52,0.32492851]
[1739242279109,1.49209053,616.65,615.53,0.26161714]
[1739242279414,2.56920115,616.64,615.53,0.26161714]
[1739242279708,1.49209053,616.63,615.53,0.26161714]
[1739242279910,1.49209053,616.62,615.53,0.26161714]
[1739242280111,1.49209053,616.61,615.53,0.26161714]
[1739242280411,1.49209053,616.6,615.53,0.26161714]
[1739242280710,1.49209053,616.59,615.54,0.32491795]
[1739242280910,1.49209053,616.58,615.55,0.26161714]
[1739242281111,1.49209053,616.57,615.56,0.3249074]
[1739242281306,1.49209053,616.57,615.57,0.26161714]
[1739242281307,1.49209053,616.56,615.57,0.26161714]
[1739242281612,1.49209053,616.55,615.57,0.26161714]
[1739242281910,2.56920115,616.54,615.58,0.32489684]
[1739242282112,1.49209053,616.53,615.59,0.26161714]
[1739242282311,1.49209053,616.52,615.6,0.32488628]
[1739242282514,2.56920115,616.51,615.61,0.26161714]
[1739242282706,1.49209053,616.5,615.6,0.32488628]
[1739242282907,1.49209053,616.49,615.6,0.32488628]
[1739242283113,1.49209053,616.48,615.6,0.32488628]
[1739242283413,1.49209053,616.47,615.6,0.32488628]
[1739242283610,1.49209053,616.46,615.6,0.32488628]
[1739242283807,2.57010982,616.45,615.6,0.32488628]
[1739242284008,1.49209053,616.44,615.6,0.32488628]
[1739242284210,2.57010982,616.43,615.6,0.32488628]
[1739242284412,1.49209053,616.42,615.6,0.32488628]
[1739242284713,1.07801929,616.41,615.6,0.32488628]
[1739242284912,1.49209053,616.4,615.6,0.32488628]
[1739242285107,1.07801929,616.39,615.6,0.32488628]
[1739242285412,1.49209053,616.38,615.6,0.32488628]
[1739242285806,1.07801929,616.37,615.6,0.32488628]
[1739242286114,1.49209053,616.36,615.6,0.32488628]
[1739242286913,1.07801929,616.35,615.6,0.32488628]
[1739242287114,1.49209053,616.34,615.6,0.32488628]
[1739242287711,1.07801929,616.33,615.6,0.32488628]
[1739242288815,0.32430679,616.7,615.61,0.26163007]
[1739242288816,1.490838,616.32,615.61,0.26163007]
[1739242289015,1.490838,616.31,615.61,0.26163007]
[1739242289317,0.32430679,616.7,615.61,0.26163007]
[1739242289318,1.07801929,616.3,615.61,0.26163007]
[1739242289720,1.07801929,616.3,615.6,0.32488628]
[1739242289922,1.07801929,616.3,615.61,0.26163495]
[1739242290122,1.07801929,616.69,615.6,0.32488628]
[1739242290322,1.49089422,616.68,615.61,0.26163585]
[1739242290525,1.49089422,616.67,615.6,0.32488628]
[1739242290720,1.49089422,616.66,615.6,0.32488628]
[1739242290921,1.49089422,616.65,615.61,0.26163549]
[1739242291122,2.56891351,616.64,615.6,0.32488628]
[1739242291317,1.49089422,616.63,615.6,0.32488628]
[1739242291523,1.49089422,616.62,615.6,0.32488628]
[1739242291722,1.49089422,616.61,615.6,0.32488628]
[1739242291923,1.49089422,616.6,615.6,0.32488628]
[1739242292119,1.49072563,616.59,615.6,0.32488628]
[1739242292317,1.49072563,616.58,615.6,0.32488628]
[1739242292521,1.49072563,616.57,615.6,0.32488628]
[1739242292731,1.49072563,616.56,615.6,0.32488628]
[1739242293016,1.49072563,616.55,615.6,0.32488628]
[1739242293216,2.56874492,616.54,615.6,0.32488628]
[1739242293422,1.49072563,616.53,615.6,0.32488628]
[1739242293621,1.49072563,616.52,615.6,0.32488628]
[1739242293822,2.56874492,616.51,615.6,0.32488628]
[1739242294025,1.49072563,616.5,615.6,0.32488628]
[1739242294224,1.49072563,616.49,615.6,0.32488628]
[1739242294423,1.49072563,616.48,615.6,0.32488628]
[1739242294620,1.49072563,616.47,615.6,0.32488628]
[1739242294927,1.49072563,616.46,615.6,0.32488628]
[1739242295126,1.49072563,616.45,615.6,0.32488628]
[1739242295320,1.49072563,616.44,615.6,0.32488628]
[1739242295518,1.49072563,616.43,615.6,0.32488628]
[1739242295719,1.49104424,616.42,615.6,0.32488628]
[1739242295922,1.49104424,616.41,615.6,0.32488628]
[1739242296121,1.49104424,616.4,615.6,0.32488628]
[1739242296323,1.49104424,616.39,615.6,0.32488628]
[1739242296525,1.49104424,616.38,615.6,0.32488628]
[1739242296719,1.49104424,616.37,615.6,0.32488628]
[1739242296920,1.49104424,616.36,615.6,0.32488628]
[1739242297122,1.49104424,616.35,615.6,0.32488628]
[1739242297320,1.49104424,616.34,615.6,0.32488628]
[1739242297520,1.49104424,616.33,615.6,0.32488628]
[1739242297827,2.56906353,616.32,615.6,0.32488628]
[1739242298030,1.49104424,616.31,615.6,0.32488628]
[1739242298225,2.56906353,616.3,615.6,0.32488628]
[1739242298521,1.49104424,616.29,615.6,0.32488628]
[1739242298726,2.56906353,616.29,615.6,0.32488628]
[1739242298926,1.49104424,616.28,615.6,0.32488628]
[1739242299426,1.07801929,616.27,615.6,0.32488628]
[1739242299625,1.49104424,616.26,615.6,0.32488628]
[1739242300026,1.49111103,616.25,615.6,0.32488628]
[1739242300221,1.49111103,616.24,615.6,0.32488628]
[1739242300421,1.49111103,616.23,615.6,0.32488628]
[1739242300624,1.49111103,616.22,615.6,0.32488628]
[1739242300825,1.07801929,616.21,615.6,0.32488628]
[1739242301326,1.49136087,616.2,615.6,0.32488628]
[1739242301519,1.07801929,616.69,615.6,0.32488628]
[1739242301724,1.07801929,616.19,615.6,0.32488628]
[1739242302222,1.49128929,616.18,615.6,0.32488628]
[1739242302423,1.07801929,616.67,615.6,0.32488628]
[1739242302622,1.81555497,616.66,615.6,0.32488628]
[1739242302825,2.89357952,616.65,615.6,0.32488628]
[1739242303026,1.81556548,616.64,615.6,0.32488628]
[1739242303227,1.49122714,616.63,615.6,0.32488628]
[1739242303426,1.49122714,616.62,615.6,0.32488628]
[1739242303627,2.56924643,616.61,615.6,0.32488628]
[1739242303823,1.49122714,616.6,615.6,0.32488628]
[1739242304027,1.49122714,616.59,615.6,0.32488628]
[1739242304227,1.49122714,616.58,615.6,0.32488628]
[1739242304427,1.49122714,616.57,615.6,0.32488628]
[1739242304728,1.49122714,616.56,615.6,0.32488628]
[1739242305027,1.49122714,616.55,615.6,0.32488628]
[1739242305224,1.49122714,616.54,615.6,0.32488628]
[1739242305422,2.56924643,616.53,615.6,0.32488628]
[1739242305623,1.49122714,616.52,615.6,0.32488628]
[1739242305828,1.49122714,616.51,615.6,0.32488628]
[1739242306023,1.49122714,616.5,615.6,0.32488628]
[1739242306227,1.49122714,616.49,615.6,0.32488628]
[1739242306428,2.56924643,616.48,615.6,0.32488628]
[1739242306725,1.49122714,616.47,615.6,0.32488628]
[1739242306928,1.49122714,616.46,615.6,0.32488628]
[1739242307229,2.56924643,616.45,615.6,0.32488628]
[1739242307431,1.49122714,616.44,615.6,0.32488628]
[1739242307627,1.49122714,616.43,615.6,0.32488628]
[1739242307823,1.49122714,616.42,615.6,0.32488628]
[1739242308027,1.49122714,616.41,615.6,0.32488628]
[1739242308329,1.49122714,616.4,615.6,0.32488628]
[1739242308530,2.56924643,616.39,615.6,0.32488628]
[1739242308727,1.49122714,616.38,615.6,0.32488628]
[1739242308928,1.49122714,616.37,615.6,0.32488628]
[1739242309122,1.49122714,616.36,615.6,0.32488628]
[1739242309426,2.56924643,616.35,615.6,0.32488628]
[1739242309626,1.49122714,616.34,615.6,0.32488628]
[1739242309823,2.56924643,616.33,615.6,0.32488628]
[1739242310123,1.49122714,616.32,615.6,0.32488628]
[1739242310529,2.56905919,616.31,615.6,0.32488628]
[1739242310723,1.4910399,616.3,615.6,0.32488628]
[1739242311325,1.07801929,616.29,615.6,0.32488628]
[1739242311530,1.4910399,616.28,615.6,0.32488628]
[1739242312034,1.07801929,616.27,615.6,0.32488628]
[1739242312233,1.4910399,616.26,615.6,0.32488628]
[1739242312927,1.07801929,616.25,615.6,0.32488628]
[1739242313130,1.4910399,616.24,615.6,0.32488628]
[1739242313731,1.07801929,616.23,615.6,0.32488628]
[1739242313930,1.4910399,616.22,615.6,0.32488628]
[1739242314729,2.56752526,616.21,615.6,0.32488628]
[1739242314929,1.48950597,616.2,615.13,1.19824383]
[1739242315130,1.48950597,616.2,615.14,0.32512923]
[1739242315330,1.07801929,616.19,615.14,0.32512923]
[1739242315527,1.48950597,616.18,615.14,0.32512923]
[1739242316034,1.07801929,616.17,615.14,0.32512923]
[1739242316334,1.48950597,616.16,615.14,0.32512923]
[1739242317234,1.07801929,616.15,615.15,0.26174297]
[1739242317438,1.48904119,616.14,615.15,0.26174297]
[1739242317631,1.48904119,616.14,615.16,0.32511866]
[1739242317827,1.07801929,616.13,615.17,0.26174297]
[1739242318033,1.48904119,616.12,615.18,0.32510809]
[1739242318235,1.48904119,616.12,615.19,0.26177047]
[1739242318435,1.07801929,616.11,615.19,0.26177047]
[1739242318634,1.48904119,616.1,615.19,0.26177047]
[1739242318834,1.48904119,616.1,615.2,0.32509752]
[1739242319030,1.48844839,616.09,615.21,0.26177047]
[1739242319230,1.48844839,616.08,615.21,0.26177047]
[1739242319430,1.48844839,616.07,615.21,0.26177047]
[1739242319628,1.07801929,616.09,615.21,0.26177047]
[1739242319833,1.48828217,616.08,615.22,1.69583756]
[1739242320036,2.56630146,616.07,615.22,1.69583756]
[1739242320234,1.48828217,616.06,615.22,1.69583756]
[1739242320433,1.07801929,616.05,615.22,1.69583756]
[1739242321237,1.48823954,616.04,615.22,1.69583756]
[1739242321631,1.48823954,616.03,615.22,1.69583756]
[1739242321835,1.48823954,616.02,615.22,1.69583756]
[1739242322033,1.48823954,616.01,615.22,1.69583756]
[1739242322832,1.07801929,616.0,615.22,1.69583756]
[1739242323438,1.07801929,616.63,615.22,1.69583756]
[1739242323740,0.32435412,616.61,615.22,1.69583756]
[1739242324038,1.48689789,616.6,615.22,1.69583756]
[1739242324339,1.81126254,616.59,615.22,1.69583756]
[1739242324638,1.8112678,616.58,615.22,1.69583756]
[1739242324840,1.81127306,616.57,615.22,1.69583756]
[1739242325138,1.81127832,616.56,615.22,1.69583756]
[1739242325338,1.81128358,616.55,615.22,1.69583756]
[1739242325540,1.81128884,616.54,615.22,1.69583756]
[1739242325841,3.18758684,616.53,615.23,0.2617497]
[1739242326039,1.78517134,616.52,615.23,0.2617497]
[1739242326235,1.78517134,616.51,615.23,0.2617497]
[1739242326433,2.10958334,616.5,615.23,0.2617497]
[1739242326736,1.78517134,616.49,615.23,0.2617497]
[1739242326940,3.18761315,616.48,615.23,0.2617497]
[1739242327140,1.78517134,616.47,615.23,0.2617497]
[1739242327440,2.86319063,616.46,615.23,0.2617497]
[1739242327635,1.78517134,616.45,615.23,0.2617497]
[1739242327940,2.86319063,616.44,615.23,0.2617497]
[1739242328140,1.78517134,616.43,615.23,0.2617497]
[1739242328343,1.78517134,616.42,615.23,0.2617497]
[1739242328640,1.78517134,616.41,615.23,0.2617497]
[1739242328940,1.78517134,616.4,615.23,0.2617497]
[1739242329240,1.78517134,616.39,615.23,0.2617497]
[1739242329434,1.78517134,616.38,615.23,0.2617497]
[1739242329640,2.86319063,616.37,615.23,0.2617497]
[1739242329834,1.48689789,616.36,615.23,0.2617497]
[1739242330141,1.48689789,616.35,615.23,0.2617497]
[1739242330340,1.48689789,616.34,615.23,0.2617497]
[1739242330542,1.48689789,616.33,615.23,0.2617497]
[1739242330742,1.48689789,616.32,615.23,0.2617497]
[1739242331138,1.48689789,616.32,615.24,0.32507639]
[1739242331338,1.48689789,616.32,615.25,0.2617497]
[1739242331541,1.48689789,616.32,615.26,0.32506582]
[1739242331743,1.07801929,616.31,615.27,0.2617497]
[1739242332043,1.48689789,616.3,615.28,0.32505525]
[1739242332235,1.48689789,616.3,615.29,0.2617497]
[1739242332542,1.48689789,616.3,615.3,0.32504469]
[1739242332739,1.48689789,616.3,615.31,0.2617497]
[1739242333045,1.07801929,616.29,615.31,0.58678911]
[1739242333244,1.48598726,616.28,615.32,0.2617497]
[1739242333943,1.07801929,616.27,615.32,0.2617497]
[1739242334135,1.48598726,616.26,615.32,0.2617497]
[1739242334337,1.07801929,616.25,615.32,0.2617497]
[1739242334538,1.48598726,616.24,615.32,0.2617497]
[1739242335039,1.07801929,616.23,615.32,0.2617497]
[1739242335242,1.48598726,616.22,615.32,0.2617497]
[1739242335644,1.07801929,616.21,615.32,0.2617497]
[1739242335839,1.48598726,616.2,615.32,0.2617497]
[1739242336038,1.07801929,616.19,615.32,0.2617497]
[1739242337045,1.07801929,616.47,615.32,0.2617497]
[1739242337244,1.48633606,616.46,615.32,0.2617497]
[1739242337443,0.32442252,616.48,615.33,0.32502884]
[1739242337444,2.56435535,616.45,615.33,0.32502884]
[1739242337644,1.48633606,616.44,615.34,0.2617497]
[1739242337838,1.48633606,616.44,614.93,1.19824383]
[1739242337839,1.48633606,616.43,615.35,0.58671846]
[1739242338042,2.56435535,616.42,615.36,0.26170018]
[1739242338242,1.48633606,616.41,615.36,0.26170018]
[1739242338646,1.07801929,616.4,615.37,0.32500771]
[1739242338845,1.48681103,616.39,615.38,0.26170018]
[1739242339145,1.07801929,616.38,615.38,0.26170018]
[1739242339346,1.48681103,616.37,615.38,0.26170018]
[1739242339738,1.07801929,616.36,615.38,0.26170018]
[1739242339942,1.48681103,616.35,615.38,0.26170018]
[1739242340146,1.48681103,616.35,615.39,0.32499715]
[1739242340446,1.07801929,616.34,615.4,0.26170018]
[1739242340649,1.48681103,616.33,615.4,0.26170018]
[1739242340845,1.48681103,616.33,615.41,0.32498659]
[1739242341150,1.48681103,616.33,615.42,0.26170018]
[1739242341446,1.07801929,616.32,615.42,0.26170018]
[1739242341750,1.48736529,616.31,615.42,0.26170018]
[1739242342147,1.48736529,616.3,615.42,0.26170018]
[1739242342351,1.48741459,616.29,615.42,0.26170018]
[1739242342549,1.07801929,616.29,615.42,0.26170018]
[1739242342746,1.48764674,616.28,615.42,0.26170018]
[1739242342952,1.07801929,616.47,615.42,0.26170018]
[1739242343153,1.48764706,616.46,615.42,0.26170018]
[1739242343351,1.48764706,616.45,615.43,0.32497603]
[1739242343653,1.48764706,616.45,615.44,0.26170018]
[1739242343850,1.48764706,616.45,615.45,0.32496547]
[1739242344045,1.07801929,616.44,615.46,0.26170018]
[1739242344250,1.48764706,616.43,615.46,0.58666037]
[1739242344452,1.48764706,616.43,615.47,0.26170018]
[1739242344645,1.07801929,616.42,615.47,0.26170018]
[1739242344850,1.48764706,616.41,615.47,0.26170018]
[1739242345748,1.07801929,616.4,615.47,0.26170018]
[1739242345953,1.48764706,616.39,615.47,0.26170018]
[1739242346251,1.07801929,616.38,615.47,0.26170018]
[1739242346451,1.48764706,616.37,615.47,0.26170018]
[1739242347051,1.07801929,616.36,615.47,0.26170018]
[1739242347252,1.48663908,616.35,615.47,0.26170018]
[1739242347654,1.07801929,616.34,615.46,0.32496019]
[1739242347954,1.48663908,616.33,615.46,0.32496019]
[1739242348157,1.48663908,616.33,615.47,0.26167067]
[1739242348750,1.48663908,616.33,615.46,0.32496019]
[1739242348949,1.07801929,616.32,615.47,0.26167337]
[1739242349152,1.48663908,616.31,615.47,0.26167337]
[1739242349658,1.07801929,616.3,615.46,0.32496019]
[1739242349854,1.07801929,616.3,615.47,0.26165882]
[1739242350256,1.07801929,616.47,615.47,0.26165882]
[1739242350458,1.48715636,616.46,615.47,0.26165882]
[1739242350956,2.56517565,616.45,615.47,0.26165882]
[1739242351150,1.48719477,616.44,615.47,0.26165882]
[1739242351351,1.48719477,616.43,615.47,0.26165882]
[1739242351658,2.56521406,616.42,615.47,0.26165882]
[1739242351955,1.48719477,616.41,615.47,0.26165882]
[1739242352158,1.07801929,616.4,615.47,0.26165882]
[1739242352457,1.48719477,616.39,615.47,0.26165882]
[1739242352957,1.07801929,616.38,615.47,0.26165882]
[1739242353151,1.48719477,616.37,615.47,0.26165882]
[1739242353355,1.07801929,616.38,615.46,0.32496019]
[1739242353555,1.48703299,616.37,615.47,0.26165724]
[1739242353858,1.48703299,616.36,615.46,0.32496019]
[1739242354056,1.48703299,616.35,615.46,0.32496019]
[1739242354258,1.48703299,616.34,615.46,0.32496019]
[1739242354458,1.48703299,616.34,615.47,0.26167747]
[1739242354855,1.07801929,616.33,615.47,0.26167747]
[1739242355060,1.48703299,616.32,615.47,0.26167747]
[1739242355557,1.48697779,616.31,615.47,0.26167747]
[1739242355759,1.48697779,616.3,615.47,0.26167747]
[1739242355951,1.48697779,616.29,615.47,0.26167747]
[1739242356460,1.07801929,616.28,615.47,0.26167747]
[1739242357060,1.07801929,616.47,615.47,0.26167747]
[1739242357361,1.48675856,616.46,615.47,0.26167747]
[1739242357660,2.56139881,616.45,615.47,0.26167747]
[1739242357860,1.48675856,616.44,615.47,0.26167747]
[1739242358155,1.48647224,616.43,615.47,0.26167747]
[1739242358359,2.56111249,616.42,615.47,0.26167747]
[1739242358561,1.48647224,616.41,615.47,0.26167747]
[1739242358855,1.07464025,616.4,615.47,0.58663238]
[1739242359159,1.48647224,616.39,615.48,0.5866271]
[1739242359360,1.48647224,616.39,615.49,0.58662182]
[1739242359561,1.07464025,616.38,615.5,0.58661654]
[1739242359760,1.07464025,616.38,615.51,0.26167747]
[1739242359961,1.48653058,616.37,615.51,0.26167747]
[1739242360358,1.07464025,616.36,615.51,0.26167747]
[1739242360863,1.07464025,616.47,615.51,0.26167747]
[1739242361061,1.48637204,616.46,615.51,0.26167747]
[1739242361464,1.07464025,616.45,615.51,0.26167747]
[1739242361664,1.48637204,616.44,615.51,0.26167747]
[1739242362561,1.07464025,616.43,615.51,0.26167747]
[1739242362758,1.48637204,616.42,615.51,0.26167747]
[1739242363559,1.07464025,616.41,615.51,0.26167747]
[1739242363865,1.48637204,616.4,615.51,0.26167747]
[1739242364063,1.07464025,616.39,615.51,0.26167747]
[1739242364268,1.48637204,616.38,615.51,0.26167747]
[1739242364669,1.07464025,616.37,615.51,0.26167747]
[1739242365269,1.07464025,616.47,615.51,0.26167747]
[1739242365463,1.48556278,616.46,615.51,0.26167747]
[1739242365970,1.07464025,616.45,615.51,0.26167747]
[1739242366170,1.48556278,616.44,615.5,0.32493907]
[1739242366370,1.48556278,616.44,615.51,0.26163244]
[1739242366664,1.07464025,616.43,615.51,0.26163244]
[1739242366870,1.48556278,616.42,615.51,0.26163244]
[1739242367369,1.07464025,616.41,615.51,0.26163244]
[1739242367569,1.48556278,616.4,615.51,0.26163244]
[1739242367771,1.07464025,616.39,615.51,0.26163244]
[1739242368171,1.48536594,616.38,615.51,0.26163244]
[1739242368371,1.07464025,616.37,615.51,0.26163244]
[1739242368571,1.48515445,616.36,615.51,0.26163244]
[1739242368772,1.48507353,616.35,615.5,0.32493907]
[1739242369072,2.55971378,616.34,615.5,0.32493907]
[1739242369272,1.48507353,616.33,615.5,0.32493907]
[1739242369572,1.07464025,616.33,615.5,0.32493907]
[1739242370473,1.07464025,616.47,615.5,0.32493907]
[1739242370673,1.48562732,616.46,615.5,0.32493907]
[1739242370873,1.07464025,616.45,615.51,0.26165864]
[1739242371074,1.48562732,616.44,615.52,0.26165865]
[1739242371274,1.48562732,616.44,615.5,0.32493907]
[1739242371472,1.07464025,616.43,615.5,0.32493907]
[1739242371671,1.48562732,616.42,615.5,0.32493907]
[1739242371975,1.07464025,616.41,615.5,0.32493907]
[1739242372274,1.48594174,616.4,615.5,0.32493907]
[1739242372474,1.07464025,616.39,615.5,0.32493907]
[1739242372773,1.48594174,616.38,615.5,0.32493907]
[1739242373875,1.07464025,616.37,615.5,0.32493907]
[1739242374075,1.48594174,616.36,615.5,0.32493907]
[1739242374474,1.07464025,616.35,615.5,0.32493907]
[1739242375676,1.07464025,616.47,615.51,0.26164683]
[1739242375875,1.48561234,616.46,615.5,0.32493907]
[1739242376575,1.07464025,616.45,615.5,0.32493907]
[1739242376775,1.48561234,616.44,615.5,0.32493907]
[1739242377071,1.48561234,616.44,615.51,0.26164595]
[1739242377275,1.07464025,616.43,615.51,0.26164595]
[1739242377576,1.48561234,616.42,615.5,0.32493907]
[1739242378272,1.07464025,616.41,615.5,0.32493907]
[1739242378476,1.48561234,616.4,615.51,0.26165299]
[1739242378677,1.48549121,616.39,615.51,0.26165299]
[1739242378977,1.48549121,616.38,615.51,0.26165299]
[1739242379679,1.07464025,616.37,615.51,0.26165299]
[1739242379879,1.48549121,616.36,615.5,0.32493907]
[1739242380074,1.07464025,616.35,615.51,0.26165286]
[1739242380979,1.07464025,616.47,615.51,0.26165286]
[1739242381177,1.48558015,616.46,615.51,0.26165286]
[1739242381379,1.07464025,616.45,615.51,0.26165286]
[1739242381575,1.48558015,616.44,615.51,0.26165286]
[1739242381982,1.07464025,616.43,615.51,0.26165286]
[1739242382182,1.48587104,616.42,615.51,0.26165286]
[1739242382581,1.07464025,616.41,615.51,0.26165286]
[1739242382778,1.48622662,616.4,615.51,0.26165286]
[1739242382976,1.07464025,616.39,615.5,0.32493907]
[1739242383183,1.48622662,616.38,615.51,0.26164415]
[1739242383583,1.07464025,616.37,615.51,0.26164415]
[1739242383783,1.48622662,616.36,615.51,0.26164415]
[1739242384084,1.07464025,616.35,615.51,0.26164415]
[1739242384584,1.07464025,616.47,615.51,0.26164415]
[1739242384783,1.48698578,616.46,615.51,0.26164415]
[1739242385484,1.07464025,616.45,615.51,0.26164415]
[1739242385684,1.48698578,616.44,615.51,0.26164415]
[1739242386087,1.07464025,616.43,615.52,0.32492851]
[1739242386284,1.4874517,616.42,615.53,0.26164415]
[1739242386479,1.07464025,616.43,615.54,0.58651914]
[1739242386684,1.07464025,616.96,615.55,0.26160119]
[1739242386885,1.78557106,616.95,615.55,0.26160119]
[1739242387085,3.18439194,616.94,615.55,0.26160119]
[1739242387286,2.10975694,616.93,615.56,0.3249074]
[1739242387482,2.1097622,616.92,615.57,0.26160119]
[1739242387682,3.1844077,616.91,615.57,0.58650331]
[1739242387883,2.10977271,616.9,615.58,0.26160119]
[1739242388086,1.81165579,616.89,615.58,0.26160119]
[1739242388286,2.10978322,616.88,615.58,0.26160119]
[1739242388586,2.10978848,616.87,615.58,0.26160119]
[1739242388781,1.48744889,616.86,615.57,0.32490212]
[1739242388980,1.7855673,616.85,615.58,0.26159756]
[1739242389181,1.7855673,616.84,615.58,0.26159756]
[1739242389382,1.7855673,616.83,615.58,0.26159756]
[1739242389584,1.69448198,616.86,615.58,0.26159756]
[1739242389585,1.7855673,616.82,615.58,0.26159756]
[1739242389881,1.7855673,616.81,615.59,0.32489156]
[1739242390085,1.48744889,616.8,615.59,0.32489156]
[1739242390286,1.7855673,616.79,615.6,0.26159756]
[1739242390486,1.48744889,616.78,615.61,0.32488101]
[1739242390682,1.48744889,616.77,615.62,0.26159756]
[1739242390880,1.48744889,616.76,615.62,0.58647329]
[1739242391084,1.48872823,616.75,615.63,0.26159756]
[1739242391288,2.56336848,616.74,615.63,0.26159756]
[1739242391585,1.48872823,616.73,615.63,0.26159756]
[1739242391786,2.56336848,616.72,615.63,0.26159756]
[1739242391980,1.48872823,616.71,615.63,0.26159756]
[1739242392186,1.48872823,616.7,615.63,0.26159756]
[1739242392386,1.48872823,616.69,615.63,0.26159756]
[1739242392588,1.48910385,616.68,615.63,0.26159756]
[1739242392782,2.5637441,616.67,615.63,0.26159756]
[1739242392984,1.48910385,616.66,615.63,0.26159756]
[1739242393182,2.5637441,616.65,615.63,0.26159756]
[1739242393385,1.48910385,616.64,615.63,0.26159756]
[1739242393688,1.48910385,616.63,615.63,0.26159756]
[1739242393885,1.48910385,616.62,615.63,0.26159756]
[1739242394581,1.07464025,616.61,615.63,0.26159756]
[1739242394788,1.48910385,616.6,615.63,0.26159756]
[1739242395187,2.5637441,616.59,615.63,0.26159756]
[1739242395387,1.48910385,616.58,615.62,0.32487573]
[1739242395682,1.07464025,616.57,615.63,0.26159071]
[1739242395882,1.48910385,616.56,615.63,0.26159071]
[1739242396090,1.48910385,616.56,615.64,0.26158961]
[1739242396283,1.07464025,616.55,615.63,0.26158961]
[1739242396486,1.48910385,616.54,615.64,0.26158961]
[1739242396781,2.56372813,616.53,615.65,0.26158961]
[1739242396985,1.48908788,616.52,615.63,0.26158961]
[1739242397184,1.07464025,616.51,615.64,0.26158961]
[1739242397382,1.48908788,616.5,615.63,0.26158961]
[1739242397587,1.48908788,616.5,615.62,0.32487573]
[1739242397588,1.48908788,616.5,615.64,0.26158961]
[1739242397786,1.07464025,616.49,615.65,0.26158961]
[1739242397989,1.48908788,616.48,615.66,0.26158961]
[1739242398186,1.48908788,616.48,615.67,0.26158961]
[1739242398387,1.48908788,616.48,615.63,0.26158961]
[1739242398593,1.07464025,616.47,615.64,0.26158961]
[1739242398790,1.48863288,616.46,615.63,0.26158961]
[1739242399087,1.07464025,616.45,615.63,0.26158961]
[1739242399292,1.48863288,616.44,615.63,0.26158961]
[1739242400090,1.07464025,616.43,615.63,0.26158961]
[1739242400294,1.48863288,616.42,615.63,0.26158961]
[1739242400492,1.07464025,616.41,615.63,0.26158961]
[1739242401289,1.07464025,616.86,615.63,0.26158961]
[1739242401490,1.78654571,616.85,615.63,0.26158961]
[1739242401691,1.78654571,616.84,615.63,0.26158961]
[1739242401893,1.78654571,616.83,615.63,0.26158961]
[1739242402198,2.86118596,616.82,615.63,0.26158961]
[1739242402396,1.78654571,616.81,615.63,0.26158961]
[1739242402595,1.78654571,616.8,615.63,0.26158961]
[1739242402796,1.78654571,616.79,615.63,0.26158961]
[1739242403095,1.78616055,616.78,615.63,0.26158961]
[1739242403296,1.78616055,616.77,615.63,0.26158961]
[1739242403491,1.78616055,616.76,615.63,0.26158961]
[1739242403694,2.86177585,616.75,615.63,0.26158961]
[1739242403897,1.78616055,616.74,615.63,0.26158961]
[1739242404093,0.32422267,616.86,615.63,0.26158961]
[1739242404094,2.86177585,616.73,615.63,0.26158961]
[1739242404299,1.78616055,616.72,615.63,0.26158961]
[1739242404499,1.48804153,616.71,615.63,0.26158961]
[1739242404700,1.78620232,616.7,615.63,0.26158961]
[1739242404899,1.0756153,616.71,615.63,0.26158961]
[1739242404900,1.78620232,616.69,615.63,0.26158961]
[1739242405100,1.78620232,616.68,615.63,0.26158961]
[1739242405293,1.78620232,616.67,615.63,0.26158961]
[1739242405496,1.78620232,616.66,615.63,0.26158961]
[1739242405695,1.78620232,616.65,615.63,0.26158961]
[1739242405900,1.78620232,616.64,615.63,0.26158961]
[1739242406100,1.78620232,616.63,615.63,0.26158961]
[1739242406397,1.78620232,616.62,615.63,0.26158961]
[1739242406700,2.86181762,616.61,615.63,0.26158961]
[1739242406896,1.78620232,616.6,615.63,0.26158961]
[1739242407099,1.78620232,616.59,615.63,0.26158961]
[1739242407301,1.78620232,616.58,615.63,0.26158961]
[1739242407500,1.78620232,616.57,615.63,0.26158961]
[1739242407801,1.78620232,616.56,615.63,0.26158961]
[1739242408096,1.78624206,616.55,615.64,0.26167822]
[1739242408294,1.0756153,616.57,615.62,0.32487573]
[1739242408295,1.78624206,616.54,615.62,0.32487573]
[1739242408497,2.86185736,616.53,615.63,0.26167949]
[1739242408697,1.78624206,616.52,615.63,0.26167949]